bitfinex-derivatives/quotes_BTCF0:USTF0_20251219
["timestamp","ask_amount","ask_price","bid_price","bid_amount"]
[1766159128886,0.0038,88101.0,88083.0,0.0113579]
[1766159129477,0.0038,88101.0,88090.0,0.011357]
[1766159129789,0.0038,88101.0,88086.0,0.0113576]
[1766159130098,0.0113534,88119.0,88088.0,0.0113573]
[1766159130390,0.0113549,88107.0,88095.0,0.00017031]
[1766159130580,0.0113552,88105.0,88095.0,0.00017031]
[1766159130896,0.0113566,88094.0,88082.0,0.00564]
[1766159131080,0.00576,88097.0,88050.0,0.08097796]
[1766159131287,0.011357,88092.0,88073.0,0.0113592]
[1766159131488,0.0113572,88090.0,88074.0,0.00576]
[1766159132186,0.00017031,88091.0,88075.0,0.011359]
[1766159132382,0.01152741,88091.0,88075.0,0.011359]
[1766159132691,0.01152741,88091.0,88074.0,0.00576]
[1766159132900,0.0113574,88088.0,88073.0,0.00017031]
[1766159133081,0.00017031,88091.0,88076.0,0.0113589]
[1766159133695,0.0113575,88087.0,88073.0,0.00489031]
[1766159134397,0.00017031,88091.0,88074.0,0.0113591]
[1766159134586,0.01152731,88091.0,88074.0,0.0113591]
[1766159134786,0.0113582,88082.0,88073.0,0.00489031]
[1766159134986,0.00017031,88091.0,88073.0,0.00489031]
[1766159135193,0.00017031,88091.0,88073.0,0.00017031]
[1766159135397,0.0113584,88081.0,88073.0,3.1e-07]
[1766159135784,0.0113586,88079.0,88073.0,3.1e-07]
[1766159135981,0.00308,88087.0,88073.0,3.1e-07]
[1766159136188,0.0113584,88081.0,88073.0,3.1e-07]
[1766159136782,0.0113578,88085.0,88073.0,3.1e-07]
[1766159137396,0.00308,88087.0,88073.0,3.1e-07]
[1766159137591,0.0255033,88086.0,88036.0,9.523e-05]
[1766159137793,0.4141067,88070.0,88036.0,9.523e-05]
[1766159137994,0.0113624,88050.0,88036.0,9.523e-05]
[1766159138687,0.00576,88051.0,88036.0,9.523e-05]
[1766159139093,0.0171222,88051.0,88036.0,9.523e-05]
[1766159140401,0.0113625,88048.0,88036.0,9.523e-05]
[1766159140801,0.0113627,88047.0,88036.0,9.523e-05]
[1766159141098,0.0113625,88048.0,88036.0,9.523e-05]
[1766159141899,0.0113627,88047.0,88036.0,9.523e-05]
[1766159142197,0.0113632,88043.0,88027.0,0.00212]
[1766159142900,0.0113632,88043.0,88023.0,0.0113657]
[1766159142901,0.00576,88042.0,88023.0,0.0113657]
[1766159143100,0.0113639,88038.0,88024.0,0.00017031]
[1766159144198,0.00010383,88041.0,88025.0,0.0113655]
[1766159144702,0.00010383,88041.0,88024.0,0.00017031]
[1766159144903,0.01146733,88041.0,88024.0,0.00017031]
[1766159145196,0.0113641,88036.0,88024.0,0.00017031]
[1766159146199,0.00010383,88041.0,88007.0,0.0113677]
[1766159146393,0.0113649,88030.0,88002.0,0.0038]
[1766159146698,0.00010383,88041.0,88002.0,0.0038]
[1766159146699,0.0113651,88028.0,88002.0,0.0038]
[1766159146998,0.0113654,88026.0,88007.0,0.0113678]
[1766159147302,0.0038,88027.0,88008.0,0.00017041]
[1766159147303,0.00017041,88025.0,88008.0,0.00017041]
[1766159147900,0.0113656,88024.0,88008.0,0.00017041]
[1766159148100,0.0113664,88019.0,87999.0,0.0113688]
[1766159148402,0.0113667,88016.0,87995.0,0.0113693]
[1766159148709,0.011367,88013.0,87994.0,0.0113695]
[1766159148903,0.00010383,88018.0,87993.0,0.0001142]
[1766159149205,0.00384,88017.0,87998.0,0.0113689]
[1766159149391,0.00384,88017.0,87997.0,0.00017041]
[1766159149596,0.00384,88017.0,87997.0,0.01153941]
[1766159150101,0.00136,88016.0,88003.0,0.0113683]
[1766159150405,3.83e-06,88018.0,88015.0,0.0113667]
[1766159150608,1e-08,88025.0,88023.0,0.0113657]
[1766159150797,1e-08,88025.0,88013.0,0.0113669]
[1766159150995,0.00196001,88025.0,88008.0,0.0113677]
[1766159151303,0.00196001,88025.0,88004.0,0.0113681]
[1766159151497,0.0113656,88024.0,88004.0,0.0113681]
[1766159151697,0.0113661,88021.0,88005.0,0.00017041]
[1766159152098,0.01332561,88025.0,88005.0,0.00017041]
[1766159152294,0.0113665,88017.0,88005.0,4.1e-07]
[1766159152902,0.00196001,88025.0,88007.0,0.0113677]
[1766159152903,0.0113656,88024.0,88007.0,0.0113677]
[1766159153096,0.0113656,88024.0,88005.0,4.1e-07]
[1766159153097,0.00576,88023.0,88005.0,4.1e-07]
[1766159153298,0.00248,88022.0,88005.0,4.1e-07]
[1766159153495,0.00248,88022.0,88010.0,0.0113674]
[1766159153705,0.00248,88022.0,88012.0,0.0113671]
[1766159153908,0.00248,88022.0,88011.0,0.0113672]
[1766159154401,0.00248,88022.0,88013.0,0.011367]
[1766159154704,1e-08,88025.0,88005.0,4.1e-07]
[1766159154705,1e-08,88025.0,88023.0,0.0113656]
[1766159154901,0.0032,88030.0,88008.0,0.0113677]
[1766159155204,0.00108,88029.0,88015.0,0.0113666]
[1766159155398,0.00108,88029.0,88008.0,0.0113676]
[1766159155707,0.00108,88029.0,88006.0,0.00564]
[1766159155708,0.00108,88029.0,88020.0,0.011366]
[1766159156093,0.0026,88029.0,88016.0,0.00017041]
[1766159156295,0.0026,88029.0,88019.0,0.0113662]
[1766159156498,0.0026,88029.0,88000.0,0.0113686]
[1766159156704,0.4141067,88020.0,87979.0,0.0113714]
[1766159156905,0.0122463,88019.0,87989.0,0.01137]
[1766159157107,0.011368,88006.0,87987.0,0.0113703]
[1766159157306,0.00576,88005.0,87987.0,0.0113703]
[1766159157507,0.0113683,88004.0,87987.0,0.0113703]
[1766159157708,0.0113683,88004.0,87987.0,0.00011096]
[1766159157910,8.196e-05,88003.0,87987.0,0.00011096]
[1766159158307,0.0113688,88000.0,87987.0,0.00011096]
[1766159159406,8.196e-05,88003.0,87988.0,0.0113702]
[1766159159904,8.196e-05,88003.0,87987.0,0.00011096]
[1766159160104,0.00017041,88005.0,87987.0,0.00011096]
[1766159160105,7e-08,88005.0,87987.0,0.00011096]
[1766159160308,7e-08,88005.0,87996.0,0.0113692]
[1766159160504,7e-08,88005.0,88002.0,0.0113684]
[1766159161009,1.44968,88034.0,87992.0,0.00576]
[1766159161209,0.0113665,88017.0,88001.0,0.0113685]
[1766159161408,0.00576,88016.0,87992.0,0.00576]
[1766159161713,0.0170064,88018.0,88000.0,0.0113686]
[1766159161913,0.01717681,88018.0,88000.0,0.00017041]
[1766159162211,0.07201491,88052.0,88000.0,0.00017041]
[1766159162212,1.44972,88052.0,88001.0,0.0568428]
[1766159162416,0.4141067,88080.0,88020.0,0.4141067]
[1766159162609,0.0113599,88069.0,88021.0,1.45548]
[1766159162831,0.00576,88079.0,88021.0,1.45548]
[1766159162832,0.00576,88068.0,88021.0,1.58273413]
[1766159163112,0.0113629,88046.0,88022.0,0.11360215]
[1766159163308,0.06066158,88093.0,88030.0,0.4141067]
[1766159163613,0.0113617,88055.0,88032.0,0.0113645]
[1766159163917,0.0113617,88055.0,88037.0,0.0113639]
[1766159164107,0.00576,88058.0,88033.0,0.0113643]
[1766159164408,0.00017041,88054.0,88037.0,0.00017041]
[1766159164914,0.00017041,88054.0,88038.0,0.0113638]
[1766159165209,0.00017041,88054.0,88037.0,0.00017041]
[1766159165210,0.00017041,88054.0,88040.0,0.0113634]
[1766159165411,0.00017041,88054.0,88037.0,0.00017041]
[1766159165608,0.00017041,88054.0,88038.0,0.0113638]
[1766159166111,0.00017041,88054.0,88037.0,0.01153431]
[1766159166316,0.4141067,88050.0,88023.0,0.00576]
[1766159166618,0.0113625,88049.0,88011.0,0.1135757]
[1766159166810,0.0113652,88027.0,88011.0,0.1135757]
[1766159167114,0.0113654,88026.0,88007.0,0.00576]
[1766159167310,0.00017041,88025.0,88008.0,0.00017041]
[1766159167911,0.00017041,88025.0,88012.0,0.0113671]
[1766159168702,0.00017041,88025.0,88009.0,0.0113675]
[1766159169116,0.00017041,88025.0,88012.0,0.0113671]
[1766159169318,0.00017041,88025.0,88008.0,0.00017041]
[1766159169319,4.1e-07,88025.0,88015.0,0.0113667]
[1766159169617,0.00196,88041.0,88016.0,0.00576]
[1766159169917,0.00196,88043.0,88022.0,0.0113658]
[1766159170106,0.00196,88043.0,88025.0,0.0113654]
[1766159170308,0.00196,88043.0,88025.0,0.0113655]
[1766159170618,0.00213041,88043.0,88025.0,0.01153591]
[1766159170911,0.00213041,88043.0,88027.0,0.0113651]
[1766159171216,0.0113642,88036.0,88025.0,0.00017041]
[1766159171714,0.0113653,88027.0,88003.0,0.0113683]
[1766159171920,0.00576,88026.0,88007.0,0.0113677]
[1766159172121,0.00576,88026.0,88010.0,0.0113674]
[1766159172308,0.00576,88026.0,88013.0,0.011367]
[1766159172613,0.00576,88026.0,88011.0,0.00017041]
[1766159173117,0.00576,88026.0,87997.0,0.0113691]
[1766159173308,0.28264219,88021.0,87992.0,0.0113697]
[1766159173508,0.28264219,88021.0,87990.0,0.0038]
[1766159173814,0.00576,88026.0,88010.0,0.0113674]
[1766159174017,0.00576,88026.0,88006.0,0.00576]
[1766159174213,0.00576,88026.0,88007.0,0.00017041]
[1766159174422,0.0113655,88025.0,88007.0,0.00017041]
[1766159174612,0.00576,88026.0,88008.0,0.0113677]
[1766159175011,0.00576,88026.0,88007.0,0.00017041]
[1766159175617,0.00576,88026.0,88018.0,0.0113663]
[1766159175815,0.00017041,88028.0,88018.0,0.0113663]
[1766159176005,4.1e-07,88028.0,88012.0,0.0113671]
[1766159176206,4.1e-07,88028.0,88021.0,0.011366]
[1766159176417,4.1e-07,88028.0,88023.0,0.0113656]
[1766159176918,4.1e-07,88028.0,88025.0,0.0113654]
[1766159178016,0.0113613,88057.0,88039.0,0.0113636]
[1766159178216,0.02541604,88056.0,88043.0,0.0113631]
[1766159178517,0.28264219,88070.0,88016.0,1.4610466]
[1766159178518,0.00576,88058.0,88016.0,0.06399606]
[1766159178822,0.28264219,88053.0,88036.0,0.011364]
[1766159179023,0.0113618,88054.0,88036.0,0.011364]
[1766159179222,0.01153221,88054.0,88036.0,0.01153441]
[1766159179715,0.00017041,88054.0,88036.0,0.00017041]
[1766159179913,0.0113624,88050.0,88036.0,0.00017041]
[1766159180517,0.0113627,88047.0,88036.0,0.00017041]
[1766159181224,0.0113631,88044.0,88036.0,1e-08]
[1766159181712,0.0113639,88038.0,88036.0,1e-08]
[1766159181921,0.0113642,88035.0,88022.0,0.00244]
[1766159182122,0.0113642,88035.0,88018.0,0.0113663]
[1766159182312,0.0113638,88038.0,88019.0,0.00576]
[1766159182709,0.0113625,88048.0,88020.0,0.00576]
[1766159182917,0.00017041,88043.0,88025.0,0.00017041]
[1766159183111,0.00017041,88043.0,88025.0,1e-08]
[1766159183313,0.0113637,88039.0,87999.0,0.0113687]
[1766159183622,0.0113637,88039.0,88004.0,0.0113681]
[1766159183623,0.0113661,88021.0,88004.0,0.0113681]
[1766159183819,0.03116396,88038.0,88005.0,0.00576]
[1766159183820,0.00576,88038.0,88005.0,0.00576]
[1766159184122,0.0113648,88031.0,88005.0,0.00576]
[1766159184316,0.00017041,88027.0,88009.0,0.00011096]
[1766159185126,0.00017041,88027.0,88012.0,0.011367]
[1766159186829,0.00017041,88027.0,88009.0,0.00011096]
[1766159187027,0.0113662,88020.0,88009.0,0.00011096]
[1766159187228,0.0113658,88023.0,88009.0,0.00011096]
[1766159187528,0.0113658,88023.0,88006.0,0.0113678]
[1766159187714,0.00017041,88027.0,88002.0,0.00104]
[1766159187917,0.28264219,88020.0,87987.0,1.4496]
[1766159188122,0.0113677,88009.0,87988.0,0.00576]
[1766159188322,0.00017041,88007.0,87994.0,0.0113695]
[1766159188630,0.00017041,88007.0,87988.0,0.00576]
[1766159188631,4.1e-07,88007.0,87996.0,0.0113692]
[1766159188832,4.1e-07,88007.0,87998.0,0.0113689]
[1766159189123,4.1e-07,88007.0,87990.0,0.01137]
[1766159189429,4.1e-07,88007.0,87991.0,0.0113698]
[1766159189627,4.1e-07,88007.0,88001.0,0.0113685]
[1766159190619,4.1e-07,88007.0,87990.0,0.00017]
[1766159190824,4.1e-07,88007.0,88005.0,0.0113681]
[1766159191219,4.1e-07,88007.0,88001.0,0.0113685]
[1766159192132,4.1e-07,88007.0,88004.0,0.0113681]
[1766159192721,0.0113651,88029.0,88010.0,0.0113674]
[1766159192921,0.00308,88028.0,88010.0,0.0113674]
[1766159193325,0.0113652,88027.0,88010.0,0.0113674]
[1766159193726,0.01153561,88027.0,88010.0,0.01153781]
[1766159194128,0.00017041,88027.0,88010.0,0.00017041]
[1766159195024,0.0113654,88026.0,88010.0,0.00017041]
[1766159195223,0.01153571,88027.0,88010.0,0.01153771]
[1766159196228,0.00017041,88027.0,88010.0,0.00017041]
[1766159196437,0.00017041,88027.0,88010.0,4.1e-07]
[1766159196931,0.28274252,88020.0,87988.0,0.0113702]
[1766159197128,0.28274252,88010.0,87981.0,0.001]
[1766159197328,0.0113686,88001.0,87981.0,0.001]
[1766159197726,0.28274252,87991.0,87964.0,0.05]
[1766159197925,0.28274252,87991.0,87964.0,0.0671333]
[1766159197926,0.00492,87990.0,87964.0,0.0671333]
[1766159198431,0.0113713,87981.0,87964.0,0.0671333]
[1766159198638,0.0113715,87979.0,87964.0,0.05576]
[1766159198840,0.0113718,87977.0,87964.0,0.05576]
[1766159199345,0.0113718,87977.0,87964.0,0.05]
[1766159199538,0.011372,87975.0,87964.0,0.05]
[1766159199842,0.00564,87980.0,87964.0,0.05]
[1766159200033,0.00564,87980.0,87954.0,0.00012076]
[1766159200034,0.28838252,87980.0,87954.0,0.00012076]
[1766159200233,0.00564,87980.0,87954.0,0.01149536]
[1766159200435,0.0113727,87970.0,87954.0,0.00012076]
[1766159200635,0.00017051,87981.0,87954.0,0.00012076]
[1766159200636,0.0113734,87964.0,87954.0,0.00012076]
[1766159200939,0.0113734,87964.0,87917.0,0.0113794]
[1766159200940,0.0113744,87957.0,87938.0,0.0113766]
[1766159201129,0.00017051,87956.0,87933.0,0.00769875]
[1766159201330,0.29411772,87950.0,87933.0,0.00769875]
[1766159201836,9.054e-05,87949.0,87933.0,0.00769875]
[1766159202025,0.0113756,87947.0,87933.0,0.00769875]
[1766159202335,9.054e-05,87949.0,87933.0,0.00769875]
[1766159202538,0.00017051,87956.0,87933.0,0.00769875]
[1766159202539,0.00576,87951.0,87933.0,0.00769875]
[1766159202731,0.00248,87955.0,87948.0,0.0113754]
[1766159202933,0.00248,87955.0,87944.0,0.0113759]
[1766159203129,0.00248,87955.0,87931.0,0.00017051]
[1766159203331,0.28274252,87950.0,87931.0,0.01154811]
[1766159203542,0.28274252,87950.0,87932.0,0.0113774]
[1766159204238,0.28274252,87950.0,87935.0,0.0113771]
[1766159204436,6.246e-05,87954.0,87938.0,0.0113767]
[1766159204641,0.00108,87953.0,87941.0,0.0113763]
[1766159204846,6.246e-05,87954.0,87950.0,0.0113751]
[1766159205041,6.246e-05,87954.0,87932.0,0.0113775]
[1766159205042,0.00576,87966.0,87942.0,0.00568]
[1766159205237,0.0621342,87978.0,87941.0,0.00564]
[1766159205540,0.28274252,87990.0,87966.0,0.011373]
[1766159205732,0.00576,87989.0,87966.0,0.011373]
[1766159205932,0.01154101,87986.0,87969.0,0.00017051]
[1766159206140,0.0113709,87983.0,87969.0,5.1e-07]
[1766159206438,0.00017051,87986.0,87950.0,0.00016]
[1766159206734,1e-08,87986.0,87985.0,0.0113706]
[1766159206930,1e-08,87986.0,87984.0,0.0113707]
[1766159207131,0.0113659,88022.0,87997.0,0.011369]
[1766159207327,0.28274252,88020.0,87979.0,0.00576]
[1766159207540,0.28274252,88000.0,87968.0,0.1136777]
[1766159207747,0.00576,87999.0,87980.0,0.0113712]
[1766159207934,0.00576,87999.0,87976.0,0.0113717]
[1766159208145,0.00017051,87996.0,87979.0,0.00017051]
[1766159208332,0.00017051,87996.0,87947.0,0.0113754]
[1766159208535,0.28274252,87980.0,87948.0,1.4542]
[1766159208736,0.00576,87979.0,87949.0,0.0038]
[1766159209037,0.00576,87979.0,87948.0,0.00576]
[1766159209346,0.00017051,87972.0,87957.0,0.0113742]
[1766159209543,0.00576,87971.0,87957.0,0.0113742]
[1766159209839,0.00576,87971.0,87960.0,0.0113738]
[1766159210035,0.00576,87970.0,87945.0,0.00192]
[1766159210237,0.00196,87971.0,87966.0,0.011373]
[1766159210432,0.00196,87971.0,87938.0,0.0113766]
[1766159210634,0.28274252,87970.0,87939.0,1.45424]
[1766159210837,0.28274252,87970.0,87950.0,0.0113751]
[1766159211146,0.0113729,87968.0,87945.0,0.0113758]
[1766159211441,0.28274252,87970.0,87934.0,0.00576]
[1766159211645,1.45044,88018.0,87960.0,0.28274252]
[1766159211842,0.28274252,88000.0,87965.0,0.0113732]
[1766159212049,0.00576,87999.0,87991.0,0.0113698]
[1766159212245,0.00576,87999.0,87961.0,1.45156]
[1766159212246,0.00576,87999.0,87975.0,0.0113719]
[1766159212446,0.00017051,88004.0,87965.0,0.0113731]
[1766159212447,0.00196,87998.0,87994.0,0.0113695]
[1766159212745,0.00576,87997.0,87973.0,0.00504]
[1766159213243,0.00576,87997.0,87967.0,0.0113729]
[1766159213446,0.00576,87997.0,87948.0,0.00576]
[1766159213447,0.0113714,87979.0,87948.0,0.00576]
[1766159213649,0.00017051,87972.0,87948.0,0.00576]
[1766159213943,0.00017051,87972.0,87958.0,0.0113741]
[1766159214145,0.0113725,87971.0,87949.0,0.0113752]
[1766159214346,0.00576,87970.0,87949.0,0.0113752]
[1766159214644,0.00576,87970.0,87951.0,0.0113749]
[1766159215138,0.00576,87970.0,87948.0,0.0113754]
[1766159215339,0.0171327,87970.0,87945.0,0.00304]
[1766159215648,0.0171327,87970.0,87950.0,0.011375]
[1766159215840,0.00017051,87972.0,87945.0,0.00304]
[1766159216044,1e-08,87972.0,87970.0,0.0113725]
[1766159216243,1e-08,87972.0,87936.0,0.06297087]
[1766159216544,1e-08,87972.0,87940.0,0.00576]
[1766159216744,1e-08,87972.0,87940.0,0.28850252]
[1766159216932,1e-08,87972.0,87958.0,0.0113741]
[1766159217136,0.00196,87971.0,87958.0,0.0113741]
[1766159217338,0.00292,87971.0,87950.0,0.0113751]
[1766159217647,0.00292,87971.0,87957.0,0.0113741]
[1766159217847,1e-08,87972.0,87950.0,0.00564]
[1766159218047,1e-08,87972.0,87970.0,0.0113725]
[1766159218742,0.07340532,88016.0,87960.0,0.00572]
[1766159218743,1.45052,88008.0,87981.0,0.0113711]
[1766159219041,0.28274252,88000.0,87956.0,1.45052]
[1766159219234,0.0113696,87994.0,87971.0,0.0113724]
[1766159219438,0.0113698,87992.0,87971.0,0.0113724]
[1766159219643,0.00017051,87990.0,87979.0,0.0113714]
[1766159219849,0.00017051,87990.0,87978.0,0.0113714]
[1766159220350,0.00017051,87990.0,87973.0,0.00017051]
[1766159220546,0.00017051,87990.0,87973.0,0.01154261]
[1766159220746,0.00017051,87990.0,87976.0,0.0113718]
[1766159220936,0.00017051,87990.0,87974.0,0.0113719]
[1766159221140,0.00017051,87990.0,87973.0,0.00017051]
[1766159221341,1e-08,87990.0,87988.0,0.0113702]
[1766159221666,0.0113634,88041.0,87993.0,0.0113695]
[1766159221947,0.0113641,88036.0,88011.0,0.0113672]
[1766159222248,0.28274252,88030.0,88002.0,0.0038]
[1766159222447,0.00576,88035.0,88002.0,0.0038]
[1766159222749,0.00192,88037.0,88007.0,0.0001704]
[1766159222944,0.00192,88037.0,88017.0,0.0113664]
[1766159223144,0.00192,88037.0,88016.0,0.0038]
[1766159223449,0.011365,88029.0,88007.0,0.0001704]
[1766159223649,0.0001704,88027.0,88007.0,0.0001704]
[1766159223849,0.0113654,88026.0,88007.0,0.0001704]
[1766159224053,0.28274252,88020.0,87993.0,0.06314264]
[1766159224243,0.28274252,88003.0,87954.0,1.4504]
[1766159224550,0.0113677,88008.0,87960.0,0.00576]
[1766159224551,0.28274252,88000.0,87960.0,0.00576]
[1766159224748,0.28274252,87990.0,87960.0,0.00576]
[1766159224954,0.0113715,87979.0,87960.0,0.00576]
[1766159225152,0.0113715,87979.0,87968.0,0.0001705]
[1766159225355,0.0113737,87962.0,87940.0,0.0113764]
[1766159225654,0.0171332,87966.0,87943.0,0.011376]
[1766159225858,0.0113734,87964.0,87941.0,0.00576]
[1766159226240,0.0115444,87961.0,87944.0,0.0001705]
[1766159226439,0.0113756,87947.0,87927.0,0.0113781]
[1766159226643,0.00576,87954.0,87928.0,0.00576]
[1766159226849,0.0171347,87954.0,87930.0,0.0113777]
[1766159227255,0.0171347,87954.0,87933.0,0.0113773]
[1766159227458,0.0001705,87952.0,87933.0,0.0113773]
[1766159228155,0.0001705,87952.0,87928.0,0.00576]
[1766159229346,0.0113778,87930.0,87913.0,0.00013866]
[1766159229662,8.448e-05,87929.0,87913.0,0.01151846]
[1766159229960,0.28274252,87923.0,87877.0,0.0113845]
[1766159230160,1e-08,87909.0,87903.0,0.0113811]
[1766159230461,1e-08,87909.0,87899.0,0.0113816]
[1766159230649,1e-08,87909.0,87905.0,0.0113809]
[1766159230853,8.448e-05,87929.0,87899.0,0.00564]
[1766159230854,8.448e-05,87929.0,87899.0,0.28838252]
[1766159231155,8.448e-05,87929.0,87913.0,0.0113798]
[1766159231352,8.448e-05,87929.0,87899.0,0.00564]
[1766159231353,0.00212448,87929.0,87916.0,0.0113795]
[1766159231554,0.28274252,87950.0,87909.0,0.00564]
[1766159231760,0.03310773,87949.0,87927.0,0.011378]
[1766159232061,0.0113757,87946.0,87929.0,0.00017061]
[1766159232253,0.00017061,87947.0,87929.0,0.00017061]
[1766159232458,0.28274252,87940.0,87905.0,1.45064]
[1766159232662,0.00584031,87939.0,87906.0,1.45644]
[1766159233062,0.00584031,87939.0,87915.0,0.0113796]
[1766159233260,0.00584031,87939.0,87919.0,0.0113791]
[1766159233566,0.00017061,87931.0,87903.0,1.45076]
[1766159233857,0.00017061,87931.0,87904.0,0.0038]
[1766159234062,8.031e-05,87939.0,87928.0,0.0113779]
[1766159234259,8.031e-05,87939.0,87923.0,0.00576]
[1766159234766,8.031e-05,87939.0,87919.0,0.0113792]
[1766159234965,0.00017061,87938.0,87920.0,0.00017061]
[1766159235654,0.0113774,87933.0,87920.0,0.00017061]
[1766159235968,0.0113776,87931.0,87920.0,6.1e-07]
[1766159236272,0.442905,87930.0,87858.0,1.45088]
[1766159236471,0.0113819,87898.0,87860.0,0.00216]
[1766159236657,0.0113784,87925.0,87860.0,0.00216]
[1766159236658,0.00589394,87897.0,87860.0,0.00216]
[1766159236971,0.00589394,87897.0,87850.0,0.011388]
[1766159237159,0.41549631,87880.0,87825.0,1.45088]
[1766159237469,0.00017071,87861.0,87831.0,0.11378506]
[1766159237659,0.00017071,87861.0,87836.0,0.0113898]
[1766159237869,0.00017071,87861.0,87843.0,0.0113889]
[1766159238165,0.0113834,87887.0,87844.0,1.45672]
[1766159238369,0.0113845,87879.0,87847.0,0.0113885]
[1766159238874,0.0113853,87872.0,87839.0,0.0113895]
[1766159239065,0.00017071,87864.0,87847.0,0.00017071]
[1766159239470,0.00010365,87871.0,87853.0,0.0113877]
[1766159239661,0.00010365,87871.0,87847.0,0.00017071]
[1766159239862,0.00010365,87871.0,87855.0,0.0113874]
[1766159240056,0.00010365,87871.0,87851.0,0.011388]
[1766159240257,0.00010365,87871.0,87853.0,0.0113876]
[1766159240461,0.0113857,87869.0,87847.0,0.00017071]
[1766159240768,0.0113856,87870.0,87847.0,0.00017071]
[1766159241461,0.0113866,87862.0,87847.0,0.00017071]
[1766159241661,0.00027436,87871.0,87847.0,0.00017071]
[1766159241662,0.0113872,87858.0,87847.0,0.00017071]
[1766159242172,0.00568,87863.0,87847.0,0.00017071]
[1766159242972,0.00568,87863.0,87847.0,7.1e-07]
[1766159243270,0.00568,87863.0,87822.0,0.0113917]
[1766159243271,0.41549631,87860.0,87822.0,0.0113917]
[1766159243473,0.0113887,87846.0,87823.0,0.0113916]
[1766159243668,0.0113896,87839.0,87814.0,9.765e-05]
[1766159243864,0.00010365,87845.0,87824.0,0.0113915]
[1766159244065,0.00017071,87843.0,87826.0,0.00017071]
[1766159244371,0.00576,87842.0,87830.0,0.0113906]
[1766159244670,0.00296,87841.0,87826.0,0.00017071]
[1766159244860,0.00296,87841.0,87824.0,0.0113914]
[1766159245068,0.41549631,87824.0,87785.0,0.0113965]
[1766159245377,0.41549631,87824.0,87755.0,0.0114003]
[1766159245378,0.41549631,87800.0,87759.0,0.11384853]
[1766159245558,0.0113957,87792.0,87761.0,0.0113996]
[1766159245764,0.0113966,87785.0,87752.0,0.0114008]
[1766159245966,0.41549631,87770.0,87726.0,0.00012263]
[1766159246268,1.45588869,87784.0,87729.0,0.0114038]
[1766159246269,0.00017091,87757.0,87729.0,0.0114038]
[1766159246463,0.00017091,87757.0,87728.0,0.1139257]
[1766159246464,0.00589997,87756.0,87728.0,0.1139257]
[1766159246666,8e-08,87757.0,87747.0,0.0114014]
[1766159246869,0.011398,87774.0,87742.0,0.0114021]
[1766159247065,0.00388,87773.0,87746.0,0.0114015]
[1766159247364,0.00132,87772.0,87758.0,0.0113999]
[1766159247564,0.41549631,87790.0,87758.0,0.0114]
[1766159247760,1e-08,87783.0,87779.0,0.0113972]
[1766159247964,0.0113933,87811.0,87759.0,0.2338228]
[1766159248164,0.0113938,87807.0,87760.0,1.458]
[1766159248372,0.0113923,87819.0,87761.0,1.45812]
[1766159248575,0.0058,87818.0,87761.0,1.45812]
[1766159248873,0.00017091,87798.0,87781.0,0.00017091]
[1766159249072,0.0058,87797.0,87781.0,1e-08]
[1766159249275,0.0058,87797.0,87756.0,0.0114003]
[1766159249482,0.0113969,87783.0,87752.0,0.0114008]
[1766159249774,0.00388,87782.0,87752.0,0.0114008]
[1766159250280,0.00388,87782.0,87759.0,0.0113999]
[1766159250281,0.00017091,87776.0,87759.0,0.0113999]
[1766159250973,0.00017091,87776.0,87768.0,0.0113986]
[1766159250974,1e-08,87776.0,87768.0,0.0113986]
[1766159251172,0.00036,87806.0,87778.0,0.0113974]
[1766159251377,0.0113942,87804.0,87778.0,0.0113974]
[1766159251564,0.41549631,87800.0,87761.0,0.0113995]
[1766159251766,0.41549631,87800.0,87754.0,1.45268]
[1766159251968,0.0113956,87793.0,87755.0,0.00196]
[1766159252172,0.00017091,87783.0,87765.0,0.00017091]
[1766159252370,0.00017091,87783.0,87767.0,0.0113988]
[1766159252573,0.00017091,87783.0,87766.0,0.00568]
[1766159253178,0.00017091,87783.0,87765.0,0.00017091]
[1766159253372,0.41549631,87780.0,87747.0,0.0114014]
[1766159253676,0.0569714,87803.0,87736.0,1.4528]
[1766159253677,0.0058,87779.0,87742.0,0.00388]
[1766159253869,0.0171965,87786.0,87742.0,0.00388]
[1766159254062,0.0113968,87783.0,87743.0,0.12370907]
[1766159254271,0.0058,87785.0,87754.0,0.00017091]
[1766159254272,0.00017091,87772.0,87754.0,0.00017091]
[1766159254469,0.00017091,87772.0,87755.0,0.0058]
[1766159254669,0.0022,87781.0,87755.0,0.0058]
[1766159255063,0.0022,87781.0,87756.0,0.11393674]
[1766159255268,0.0022,87781.0,87754.0,0.00017091]
[1766159255673,0.0113979,87775.0,87754.0,0.00017091]
[1766159255968,0.00017091,87773.0,87754.0,0.00017091]
[1766159256569,0.01156911,87773.0,87754.0,0.00017091]
[1766159256770,0.0113986,87770.0,87754.0,0.00017091]
[1766159256975,0.00017091,87773.0,87754.0,0.00017091]
[1766159257364,0.0113997,87761.0,87754.0,1e-08]
[1766159257565,0.0114002,87758.0,87733.0,0.0114032]
[1766159257780,0.0114002,87758.0,87734.0,1.4598]
[1766159257971,0.0114002,87758.0,87735.0,0.017203]
[1766159258278,0.0113989,87767.0,87745.0,0.0114017]
[1766159258478,0.0152789,87767.0,87744.0,0.0152818]
[1766159258680,0.00017091,87764.0,87747.0,0.00017091]
[1766159259066,0.01157031,87764.0,87747.0,0.00017091]
[1766159259266,0.00017091,87764.0,87747.0,0.00017091]
[1766159260679,0.0113995,87763.0,87747.0,0.00017091]
[1766159260885,0.0114003,87757.0,87747.0,0.00017091]
[1766159261182,0.00017091,87764.0,87747.0,0.00017091]
[1766159261374,0.01157021,87764.0,87747.0,0.00017091]
[1766159261575,0.00017091,87764.0,87747.0,0.00017091]
[1766159261879,0.00017091,87764.0,87748.0,0.0114013]
[1766159262188,0.0008,87770.0,87755.0,0.0114004]
[1766159262384,0.0113979,87775.0,87755.0,0.0114004]
[1766159262678,0.00388,87781.0,87759.0,0.0113998]
[1766159262888,0.0052,87781.0,87753.0,1.45356]
[1766159263078,0.00017091,87776.0,87758.0,0.01157091]
[1766159263272,0.00017091,87776.0,87758.0,0.00017091]
[1766159263584,0.00017091,87776.0,87765.0,0.0113991]
[1766159263877,9.1e-07,87776.0,87768.0,0.0113987]
[1766159264082,9.1e-07,87776.0,87761.0,0.0058]
[1766159264284,0.0113942,87804.0,87761.0,0.0058]
[1766159264285,1.51431588,87817.0,87779.0,0.0113973]
[1766159264470,0.0338249,87809.0,87772.0,0.0113981]
[1766159264668,0.0113948,87799.0,87778.0,0.0113974]
[1766159264975,1.45364,87835.0,87799.0,0.0113947]
[1766159265169,0.0113927,87815.0,87795.0,0.0113952]
[1766159265373,0.00017081,87814.0,87796.0,0.01156591]
[1766159265573,0.0113934,87809.0,87796.0,0.00017081]
[1766159265983,0.0113936,87809.0,87796.0,0.00017081]
[1766159266170,0.0113941,87804.0,87796.0,0.00017081]